bitfinex-derivatives/quotes_SOLF0:USTF0_20250113
["timestamp","ask_amount","ask_price","bid_price","bid_amount"]
[1736793124359,6.72,175.58,175.42,36.69138613]
[1736793124556,6.72,175.58,175.43,6.72]
[1736793124752,36.69138613,175.59,175.45,36.69138613]
[1736793124956,36.69138613,175.62,175.46,4.9858]
[1736793125156,6.84774251,175.64,175.48,36.69138613]
[1736793125565,2.8483,175.62,175.56,2.8492]
[1736793125768,2.8483,175.62,175.52,6.72]
[1736793125958,6.84774251,175.64,175.52,6.72]
[1736793126156,2.8485,175.61,175.52,6.72]
[1736793126865,6.84774251,175.64,175.52,6.72]
[1736793127365,2.8487,175.6,175.52,6.72]
[1736793127664,6.84774251,175.64,175.52,6.72]
[1736793127857,2.8483,175.62,175.56,2.8492]
[1736793128463,2.8482,175.63,175.52,6.72]
[1736793129061,36.69138613,175.71,175.57,36.69138613]
[1736793129261,36.69138613,175.74,175.6,36.69138613]
[1736793129458,0.97278498,175.73,175.63,2.8481]
[1736793129661,36.69138613,175.74,175.6,43.41138613]
[1736793130463,43.41138613,175.77,175.6,43.41138613]
[1736793130767,2.847,175.7,175.6,43.41138613]
[1736793131065,36.69138613,175.74,175.6,36.69138613]
[1736793131367,2.8472,175.69,175.6,36.69138613]
[1736793131662,43.41138613,175.77,175.6,36.69138613]
[1736793131865,2.847,175.71,175.6,36.69138613]
[1736793132059,43.41138613,175.77,175.6,36.69138613]
[1736793132467,2.8474,175.68,175.6,36.69138613]
[1736793132860,36.69138613,175.71,175.58,11.7179]
[1736793133365,36.69138613,175.74,175.63,2.8481]
[1736793133558,2.847,175.7,175.6,36.69138613]
[1736793133959,2.847,175.7,175.65,2.8477]
[1736793135468,36.69138613,175.77,175.63,36.69138613]
[1736793136570,2.847,175.71,175.66,2.8476]
[1736793138069,36.69138613,175.74,175.62,6.72]
[1736793138470,36.69138613,175.74,175.6,36.69138613]
[1736793138773,36.69138613,175.71,175.58,195.9979]
[1736793138965,36.69138613,175.77,175.58,195.9979]
[1736793138966,36.69138613,175.68,175.58,195.9979]
[1736793139172,36.69138613,175.68,175.58,7.8468]
[1736793139471,36.69138613,175.65,175.5,191.0]
[1736793139674,36.69138613,175.65,175.51,3.3119]
[1736793140071,36.69138613,175.62,175.51,3.3119]
[1736793140870,36.69138613,175.59,175.51,3.3119]
[1736793141181,36.69138613,175.59,175.46,1.7222]
[1736793141182,2.8502,175.51,175.46,1.7222]
[1736793141371,36.69138613,175.56,175.46,1.7222]
[1736793141779,6.7,175.58,175.46,1.7222]
[1736793141978,36.69138613,175.59,175.46,1.7222]
[1736793142174,2.8495,175.55,175.49,2.8504]
[1736793142370,36.69138613,175.59,175.46,1.7222]
[1736793142573,36.69138613,175.56,175.46,1.7222]
[1736793142773,36.69138613,175.59,175.46,1.7222]
[1736793143373,36.69138613,175.56,175.46,1.7222]
[1736793143579,43.39138613,175.62,175.46,1.7222]
[1736793143777,2.8486,175.6,175.54,2.8496]
[1736793144376,36.69138613,175.62,175.46,1.7222]
[1736793145279,36.69138613,175.59,175.46,1.7222]
[1736793145576,2.8498,175.53,175.46,1.7222]
[1736793145780,36.69138613,175.59,175.46,1.7222]
[1736793146877,2.8494,175.56,175.49,2.8503]
[1736793147076,36.69138613,175.62,175.46,1.7222]
[1736793147282,36.69138613,175.62,175.48,36.69138613]
[1736793147685,2.8489,175.59,175.48,36.69138613]
[1736793148086,36.69138613,175.65,175.48,36.69138613]
[1736793148385,36.69138613,175.65,175.54,2.8494]
[1736793148386,2.849,175.58,175.54,2.8494]
[1736793148681,36.69138613,175.65,175.51,6.7]
[1736793148986,36.69138613,175.62,175.51,6.7]
[1736793149282,2.8501,175.51,175.47,2.8507]
[1736793149485,2.8501,175.51,175.46,199.4022]
[1736793149683,36.69138613,175.56,175.46,1.7222]
[1736793149888,36.69138613,175.56,175.46,4.5731]
[1736793150087,6.68,175.6,175.46,1.7222]
[1736793150088,36.69138613,175.59,175.46,1.7222]
[1736793150482,36.69138613,175.59,175.48,2.8505]
[1736793150987,2.8495,175.55,175.5,2.8501]
[1736793151182,36.69138613,175.59,175.46,1.7222]
[1736793151378,36.69138613,175.68,175.46,1.7222]
[1736793151583,2.8488,175.6,175.55,2.8494]
[1736793151781,36.69138613,175.65,175.51,43.37138613]
[1736793151986,36.69138613,175.68,175.51,43.37138613]
[1736793152185,2.848,175.64,175.6,2.8486]
[1736793152396,36.69138613,175.71,175.55,3.3619]
[1736793152795,36.69138613,175.71,175.56,1.5825]
[1736793153278,2.8478,175.66,175.61,2.8483]
[1736793153481,36.69138613,175.71,175.61,2.8483]
[1736793153786,36.69138613,175.71,175.56,1.5825]
[1736793153990,36.69138613,175.71,175.6,2.8486]
[1736793154288,2.8476,175.67,175.56,1.5825]
[1736793154490,36.69138613,175.71,175.59,2.8488]
[1736793154881,36.69138613,175.71,175.58,6.66]
[1736793155084,36.69138613,175.71,175.61,2.8484]
[1736793155287,2.848,175.64,175.58,6.66]
[1736793155482,2.848,175.64,175.6,2.8486]
[1736793155683,36.69138613,175.71,175.6,2.8486]
[1736793155886,2.8479,175.65,175.58,6.66]
[1736793156094,2.8479,175.65,175.6,2.8486]
[1736793156395,2.8479,175.65,175.58,6.66]
[1736793157093,2.8475,175.68,175.58,6.66]
[1736793157294,36.69138613,175.71,175.58,6.66]
[1736793157495,36.69138613,175.71,175.58,9.5088]
[1736793157687,2.8477,175.66,175.58,6.66]
[1736793157886,36.69138613,175.74,175.6,36.69138613]
[1736793158201,36.69138613,175.77,175.6,36.69138613]
[1736793158496,36.69138613,175.77,175.58,6.66]
[1736793158497,36.69138613,175.71,175.58,6.66]
[1736793158688,2.8484,175.62,175.58,9.5088]
[1736793158994,36.69138613,175.68,175.58,6.66]
[1736793159198,2.8478,175.66,175.58,6.66]
[1736793159493,36.69138613,175.74,175.6,36.69138613]
[1736793159697,36.69138613,175.77,175.67,2.8474]
[1736793159893,2.8468,175.72,175.67,2.8474]
[1736793160291,36.69138613,175.77,175.66,2.8476]
[1736793160490,2.8475,175.67,175.6,36.69138613]
[1736793160696,36.69138613,175.71,175.58,6.66]
[1736793160897,36.69138613,175.68,175.57,3.2473]
[1736793161100,2.8485,175.61,175.57,3.2473]
[1736793161398,36.69138613,175.68,175.58,2.8489]
[1736793161593,36.69138613,175.68,175.57,3.2473]
[1736793161795,36.69138613,175.71,175.57,39.93868613]
[1736793162297,2.8478,175.66,175.61,2.8484]
[1736793162600,36.69138613,175.68,175.57,1.6736]
[1736793162792,2.8477,175.66,175.61,2.8484]
[1736793162997,36.69138613,175.71,175.57,38.36498613]
[1736793163392,2.847,175.7,175.6,36.69138613]
[1736793163599,2.847,175.7,175.62,22.40892863]
[1736793163801,22.40892863,175.77,175.62,22.40892863]
[1736793164001,22.40892863,175.77,175.66,2.8476]
[1736793164901,22.40892863,175.77,175.64,2.8478]
[1736793165098,2.8473,175.69,175.62,22.40892863]
[1736793165496,2.8475,175.67,175.61,8.3576]
[1736793165692,22.40892863,175.74,175.61,8.3576]
[1736793165894,22.40892863,175.71,175.61,4.566]
[1736793166198,22.40892863,175.71,175.58,6.66]
[1736793166405,22.40892863,175.71,175.57,192.6736]
[1736793166602,22.40892863,175.71,175.57,201.0571]
[1736793166803,2.8481,175.64,175.6,2.8486]
[1736793166998,22.40892863,175.71,175.57,201.0571]
[1736793167499,2.8475,175.67,175.57,201.0571]
[1736793167699,22.40892863,175.71,175.57,201.0571]
[1736793167898,29.04892863,175.71,175.57,201.0571]
[1736793168099,22.40892863,175.68,175.57,201.0571]
[1736793168296,2.8482,175.63,175.59,2.8488]
[1736793168504,29.04892863,175.71,175.57,10.0571]
[1736793168798,2.8475,175.67,175.59,2.8487]
[1736793168998,29.04892863,175.71,175.59,2.8487]
[1736793169205,29.04892863,175.71,175.57,10.0571]
[1736793169502,22.40892863,175.71,175.57,10.0571]
[1736793170102,2.8475,175.68,175.57,10.0571]
[1736793170302,2.8475,175.68,175.59,22.40892863]
[1736793170708,22.40892863,175.74,175.59,22.40892863]
[1736793172012,22.40892863,175.71,175.57,201.0571]
[1736793172603,22.40892863,175.71,175.57,194.4171]
[1736793172804,2.8486,175.6,175.57,1.6736]
[1736793173009,22.40892863,175.68,175.57,1.6736]
[1736793173405,2.8483,175.63,175.59,2.8487]
[1736793173704,22.40892863,175.68,175.57,1.6736]
[1736793174306,22.40892863,175.68,175.58,2.8488]
[1736793174507,22.40892863,175.68,175.57,1.6736]
[1736793174808,22.40892863,175.68,175.59,2.8487]
[1736793174809,2.8483,175.62,175.59,2.8487]
[1736793175001,22.40892863,175.65,175.53,97.78]
[1736793176107,2.8486,175.61,175.53,97.78]
[1736793176310,22.40892863,175.68,175.53,120.18892863]
[1736793176811,22.40892863,175.71,175.56,22.40892863]
[1736793177104,22.40892863,175.74,175.59,22.40892863]
[1736793177310,0.97462017,175.73,175.6,3.3994]
[1736793177705,2.8471,175.7,175.64,2.8479]
[1736793178011,22.40892863,175.74,175.64,2.8479]
[1736793178214,2.8475,175.68,175.64,2.8479]
[1736793178508,2.8475,175.68,175.6,3.3994]
[1736793178811,22.40892863,175.74,175.6,3.3994]
[1736793179011,0.97464668,175.73,175.6,3.3994]
[1736793179213,0.97464668,175.73,175.61,2.8483]
[1736793179508,22.40892863,175.77,175.62,22.40892863]
[1736793179715,0.97475026,175.76,175.67,2.8473]
[1736793180012,22.40892863,175.77,175.64,6.58]
[1736793180312,22.40892863,175.77,175.66,2.8476]
[1736793180518,22.40892863,175.77,175.64,6.58]
[1736793181003,2.8468,175.72,175.64,6.58]
[1736793181207,22.40892863,175.8,175.65,24.01242863]
[1736793181920,22.40892863,175.8,175.7,2.8469]
[1736793182511,2.8464,175.74,175.7,2.8469]
[1736793182817,22.40892863,175.8,175.65,1.6035]
[1736793183006,2.8472,175.69,175.65,1.6035]
[1736793183314,22.40892863,175.77,175.66,2.8476]
[1736793183811,22.40892863,175.77,175.65,1.6035]
[1736793183812,22.40892863,175.74,175.6,3.3994]
[1736793184011,22.40892863,175.71,175.56,22.40892863]
[1736793184318,22.40892863,175.68,175.55,4.8374]
[1736793184506,22.40892863,175.68,175.55,7.6868]
[1736793184712,2.8488,175.6,175.55,7.6868]
[1736793184913,22.40892863,175.68,175.55,4.8374]
[1736793185720,2.8481,175.64,175.59,2.8486]
[1736793185919,2.8481,175.64,175.55,4.8374]
[1736793186213,6.58,175.69,175.55,4.8374]
[1736793186617,22.40892863,175.68,175.55,4.8374]
[1736793186814,2.848,175.65,175.55,7.6868]
[1736793187010,22.40892863,175.68,175.55,3.2617]
[1736793187614,6.58,175.69,175.55,3.2617]
[1736793187920,2.8485,175.62,175.57,2.8491]
[1736793188121,22.40892863,175.68,175.55,3.2617]
[1736793188320,22.40892863,175.65,175.53,97.78]
[1736793189119,22.40892863,175.68,175.53,97.78]
[1736793189324,22.40892863,175.68,175.53,104.4]
[1736793189721,6.58,175.69,175.55,22.40892863]
[1736793190119,6.58,175.69,175.58,2.8488]
[1736793190120,2.8483,175.63,175.58,2.8488]
[1736793190320,6.58,175.69,175.55,22.40892863]
[1736793190520,6.58,175.69,175.56,1.7363]
[1736793191123,175.53465534,175.77,175.58,22.40892863]
[1736793191124,22.40892863,175.74,175.58,22.40892863]
[1736793191326,6.6,175.76,175.61,22.40892863]
[1736793191529,6.6,175.76,175.62,6.6]
[1736793191823,22.40892863,175.74,175.62,6.6]
[1736793192326,2.847,175.7,175.62,6.6]
[1736793192521,6.6,175.76,175.62,6.6]
[1736793193329,2.8467,175.72,175.67,2.8473]
[1736793193527,22.40892863,175.8,175.63,22.40892863]
[1736793193726,22.40892863,175.8,175.64,1.5836]
[1736793193928,22.40892863,175.8,175.66,22.40892863]
[1736793194429,2.8463,175.75,175.7,2.847]
[1736793194823,2.8463,175.75,175.66,22.40892863]
[1736793195037,2.846,175.77,175.72,2.8466]
[1736793195429,22.40892863,175.83,175.69,6.6]
[1736793195629,2.8462,175.76,175.69,6.6]
[1736793195825,22.40892863,175.83,175.69,29.00892863]
[1736793196020,52.16535036,175.86,175.76,2.846]
[1736793196021,2.8452,175.82,175.76,2.846]
[1736793196227,67.99427899,175.86,175.76,2.846]
[1736793196427,67.99427899,175.86,175.72,22.40892863]
[1736793196925,2.8453,175.81,175.76,2.846]
[1736793197522,67.99427899,175.86,175.72,22.40892863]
[1736793197722,22.40892863,175.83,175.7,3.3757]
[1736793198327,2.8455,175.8,175.7,6.2226]
[1736793198631,22.40892863,175.8,175.7,3.3757]
[1736793200429,22.40892863,175.8,175.7,6.2227]
[1736793200733,22.40892863,175.8,175.67,97.72]
[1736793200933,22.40892863,175.77,175.67,97.72]
[1736793201331,2.8471,175.7,175.65,2.8478]
[1736793201524,22.40892863,175.77,175.64,1.5836]
[1736793201728,22.40892863,175.8,175.64,1.5836]
[1736793201924,2.8459,175.78,175.72,2.8467]
[1736793202129,6.56,175.81,175.66,22.40892863]
[1736793202425,6.56,175.81,175.72,2.8466]
[1736793202426,2.846,175.77,175.72,2.8466]
[1736793202631,2.846,175.77,175.66,22.40892863]
[1736793203329,45.58535036,175.86,175.69,22.40892863]
[1736793203330,67.99427899,175.86,175.69,22.40892863]
[1736793203634,67.99427899,175.86,175.74,2.8463]
[1736793203635,0.97486283,175.85,175.74,2.8463]
[1736793203928,0.97486283,175.85,175.7,9.9979]
[1736793204122,22.40892863,175.83,175.72,2.8466]
[1736793204327,2.8462,175.75,175.7,9.9979]
[1736793204627,2.8462,175.75,175.71,2.8467]
[1736793204932,22.40892863,175.83,175.7,9.9979]
[1736793205230,22.40892863,175.8,175.7,8.2971]
[1736793205427,2.8471,175.7,175.65,1.7008]
[1736793205633,22.40892863,175.77,175.65,1.7008]
[1736793206334,2.8469,175.71,175.66,2.8475]
[1736793206530,22.40892863,175.77,175.65,1.7008]
[1736793206930,6.58,175.82,175.65,1.7008]
[1736793206931,22.40892863,175.8,175.65,1.7008]
[1736793207133,22.40892863,175.8,175.66,22.40892863]
[1736793207431,6.58,175.82,175.66,22.40892863]
[1736793207633,2.846,175.77,175.72,2.8466]
[1736793207928,2.846,175.77,175.66,22.40892863]
[1736793208330,2.8462,175.75,175.66,22.40892863]
[1736793209131,6.58,175.82,175.68,2.8472]
[1736793209333,22.40892863,175.8,175.66,22.40892863]
[1736793209731,6.58,175.82,175.66,22.40892863]
[1736793210037,2.8459,175.77,175.66,22.40892863]
[1736793210533,2.8461,175.76,175.66,22.40892863]
[1736793210731,6.58,175.82,175.66,22.40892863]
[1736793211436,2.8459,175.77,175.74,2.8463]
[1736793211631,6.58,175.82,175.66,22.40892863]
[1736793212132,45.58535036,175.86,175.69,22.40892863]
[1736793212332,0.97646707,175.85,175.72,22.40892863]
[1736793212532,2.8452,175.81,175.77,2.8458]
[1736793213137,2.8449,175.83,175.79,2.8454]
[1736793213332,2.8449,175.83,175.75,22.40892863]
[1736793214135,2.8449,175.83,175.8,2.8454]
[1736793214338,13.41465379,175.92,175.77,6.56]
[1736793214339,2.8447,175.85,175.77,6.56]
[1736793214633,27.29288242,175.92,175.77,6.56]
[1736793214834,0.97735001,175.91,175.81,2.8451]
[1736793215036,27.29288242,175.92,175.77,6.56]
[1736793215231,0.97738136,175.91,175.77,6.56]
[1736793215433,2.8444,175.87,175.78,22.40892863]
[1736793215631,27.29288242,175.92,175.78,22.40892863]
[1736793215827,0.97743095,175.91,175.78,22.40892863]
[1736793216433,0.97743095,175.91,175.82,2.8449]
[1736793216839,2.8444,175.87,175.82,2.8449]
[1736793217134,27.29288242,175.92,175.78,22.40892863]
[1736793217135,27.29288242,175.92,175.84,2.8446]
[1736793217334,22.40892863,175.95,175.78,22.40892863]
[1736793217535,0.9780075,175.94,175.78,22.40892863]
[1736793217736,22.40892863,175.95,175.89,2.8439]
[1736793218041,22.40892863,175.98,175.81,22.40892863]
[1736793218235,22.40892863,176.01,175.92,2.8434]
[1736793218438,0.97851447,176.0,175.92,2.8434]
[1736793218641,2.8429,175.96,175.92,2.8434]
[1736793219339,2.8427,175.97,175.87,22.40892863]
[1736793219734,22.40892863,176.04,175.87,22.40892863]
[1736793219934,0.97865403,176.03,175.87,22.40892863]
[1736793220339,0.97865403,176.03,175.9,2.8438]
[1736793220540,2.8429,175.96,175.9,2.8438]
[1736793220741,22.40892863,176.04,175.87,22.40892863]
[1736793220936,22.40892863,175.98,175.86,6.54]
[1736793221130,22.40892863,175.98,175.85,1.7264]
[1736793221131,2.844,175.89,175.85,1.7264]
[1736793221342,22.40892863,175.95,175.85,1.7264]
[1736793222045,22.40892863,175.95,175.82,6.2985]
[1736793222236,22.40892863,175.92,175.82,1.7245]
[1736793222432,22.40892863,175.92,175.81,6.54]
[1736793222641,22.40892863,175.89,175.73,6.54]
[1736793223139,22.40892863,175.89,175.75,2.8462]
[1736793223737,22.40892863,175.86,175.74,1.7153]
[1736793224239,22.40892863,175.86,175.75,2.8461]
[1736793224438,22.40892863,175.86,175.74,1.7153]
[1736793224439,2.8456,175.79,175.74,1.7153]
[1736793224742,22.40892863,175.83,175.72,1.6913]
[1736793225132,22.40892863,175.8,175.68,1.5985]
[1736793225538,2.8464,175.74,175.68,1.5985]
[1736793226147,22.40892863,175.8,175.68,1.5985]
[1736793226339,2.8466,175.73,175.68,1.5985]
[1736793226938,22.40892863,175.8,175.68,1.5985]
[1736793227444,22.40892863,175.77,175.63,28.92892863]
[1736793227838,28.92892863,175.77,175.63,6.52]
[1736793228239,28.92892863,175.77,175.69,2.8471]
[1736793228240,2.8463,175.75,175.69,2.8471]
[1736793228445,28.92892863,175.77,175.69,2.8471]
[1736793228446,6.52,175.77,175.69,2.8471]
[1736793229149,2.8464,175.74,175.69,2.8471]
[1736793230142,2.8462,175.76,175.71,2.8468]
[1736793230342,6.52,175.82,175.66,22.40892863]
[1736793230538,22.40892863,175.83,175.69,22.40892863]
[1736793230745,22.40892863,175.83,175.73,2.8465]
[1736793230940,28.92892863,175.86,175.72,22.40892863]
[1736793231345,6.52,175.86,175.72,22.40892863]
[1736793231740,2.8451,175.82,175.75,2.8462]
[1736793231943,22.40892863,175.89,175.72,22.40892863]
[1736793232244,50.45116886,175.91,175.75,22.40892863]
[1736793232547,4.88381555,175.91,175.75,22.40892863]
[1736793233047,2.8445,175.86,175.8,2.8454]
[1736793233249,4.88381555,175.91,175.78,22.40892863]
[1736793233436,2.8442,175.88,175.83,2.8449]
[1736793233650,22.40892863,175.92,175.8,1.6025]
[1736793234045,2.8445,175.86,175.81,2.8452]
[1736793234244,22.40892863,175.92,175.8,1.6025]
[1736793234751,2.8446,175.85,175.8,4.4478]
[1736793235647,2.8449,175.83,175.8,1.6025]
[1736793236441,2.8445,175.86,175.81,2.8451]
[1736793236639,22.40892863,175.92,175.8,1.6025]
[1736793236839,22.40892863,175.95,175.81,22.40892863]
[1736793237047,6.5,175.97,175.81,22.40892863]
[1736793237350,2.8438,175.91,175.86,2.8443]
[1736793237551,22.40892863,175.98,175.86,2.8443]
[1736793238950,2.8436,175.92,175.87,2.8442]
[1736793239250,22.40892863,176.01,175.87,22.40892863]
[1736793239446,2.8426,175.98,175.91,2.8435]
[1736793239643,22.40892863,176.04,175.89,1.6103]
[1736793239851,0.9779029,176.03,175.89,1.6103]
[1736793240053,2.8423,176.0,175.93,2.8432]
[1736793240347,2.8423,176.0,175.9,1.707]
[1736793240348,28.92892863,176.07,175.91,6.52]
[1736793240553,0.97819752,176.06,175.91,6.52]
[1736793240754,0.97819752,176.06,175.95,2.8428]
[1736793241053,0.97819752,176.06,175.91,6.52]
[1736793241253,2.8423,176.0,175.94,2.843]
[1736793241454,28.92892863,176.07,175.91,6.52]
[1736793241652,0.97808971,176.06,175.91,6.52]
[1736793241853,22.40892863,176.04,175.91,6.52]
[1736793242253,2.8421,176.01,175.92,2.8434]
[1736793242448,22.40892863,176.04,175.92,2.8434]
[1736793242649,22.40892863,176.04,175.91,6.52]
[1736793242650,0.97811474,176.03,175.91,6.52]
[1736793243556,2.8427,175.97,175.92,2.8434]
[1736793243955,22.40892863,176.04,175.91,6.52]
[1736793244749,2.8425,175.99,175.94,2.843]
[1736793244953,22.40892863,176.04,175.91,6.52]
[1736793245353,22.40892863,176.04,175.96,2.8428]
[1736793245558,22.40892863,176.04,175.91,6.52]
[1736793245759,28.92892863,176.07,175.91,6.52]
[1736793245955,0.97908369,176.06,175.91,6.52]
[1736793246255,0.97908369,176.06,175.92,22.40892863]
[1736793246460,2.8419,176.02,175.92,22.40892863]
[1736793246960,2.8418,176.03,175.98,2.8423]
[1736793247260,28.88892863,176.1,175.92,22.40892863]
[1736793247761,0.97981495,176.09,175.92,22.40892863]
[1736793248058,0.97981495,176.09,175.95,22.40892863]
[1736793248257,0.97981495,176.09,175.96,1.6479]
[1736793249063,2.842,176.02,175.97,2.8426]
[1736793249266,22.40892863,176.1,175.96,1.6479]
[1736793249461,2.8422,176.0,175.96,1.6479]
[1736793249765,22.40892863,176.07,175.96,1.6479]
[1736793250364,2.8419,176.02,175.98,2.8424]
[1736793250559,2.8419,176.02,175.96,1.6479]
[1736793250766,2.8423,175.99,175.96,1.6479]
[1736793251265,6.46,176.11,175.9,1.707]
[1736793251266,22.40892863,176.04,175.9,1.707]
[1736793251662,28.86892863,176.04,175.9,1.707]
[1736793252463,2.8423,176.0,175.95,2.8428]
[1736793252664,28.86892863,176.04,175.95,2.8428]
[1736793252866,28.86892863,176.04,175.9,1.707]
[1736793253965,28.86892863,176.04,175.95,2.8428]
[1736793253966,2.8424,175.99,175.95,2.8428]
[1736793254164,28.86892863,176.04,175.9,1.707]
[1736793254360,2.8431,175.94,175.9,4.5507]
[1736793254562,28.86892863,176.04,175.9,1.707]
[1736793254563,22.40892863,176.01,175.9,1.707]
[1736793254971,2.8425,175.98,175.9,1.707]
[1736793255166,22.40892863,176.01,175.9,1.707]
[1736793255366,22.40892863,176.01,175.86,311.04892863]
[1736793255367,22.40892863,175.98,175.86,191.0]
[1736793255867,22.40892863,175.98,175.85,2.8445]
[1736793256068,22.40892863,175.98,175.82,6.46]
[1736793256264,2.844,175.89,175.84,2.8447]
[1736793256466,6.46,175.97,175.83,22.40892863]
[1736793257267,6.46,175.97,175.86,22.40892863]
[1736793257470,5.6832,176.04,175.83,22.40892863]
[1736793257471,22.40892863,175.98,175.83,22.40892863]
[1736793258467,22.40892863,175.98,175.86,2.8444]
[1736793258769,22.40892863,175.98,175.83,22.40892863]
[1736793258972,2.8443,175.87,175.83,22.40892863]
[1736793259162,28.88892863,175.95,175.81,5.0095]
[1736793259560,2.8436,175.91,175.83,2.8448]
[1736793259760,28.88892863,175.95,175.81,5.0095]
[1736793260169,2.8443,175.87,175.83,2.8448]
[1736793260370,28.88892863,175.95,175.81,5.0095]
[1736793260770,28.88892863,175.95,175.83,2.8448]
[1736793261270,2.8443,175.87,175.83,2.8448]
[1736793261472,28.88892863,175.95,175.85,2.8445]
[1736793261771,28.88892863,175.95,175.81,5.0095]
[1736793261975,28.88892863,175.95,175.82,2.845]
[1736793262172,28.88892863,175.95,175.81,5.0095]
[1736793263073,28.88892863,175.95,175.81,3.3546]
[1736793263074,22.40892863,175.92,175.81,3.3546]
[1736793263974,22.40892863,175.89,175.72,1.7094]
[1736793264176,22.40892863,175.89,175.74,6.48]
[1736793264371,2.8446,175.86,175.78,2.8457]
[1736793264571,22.40892863,175.89,175.78,2.8457]
[1736793265273,2.8452,175.82,175.77,2.8458]
[1736793265470,22.40892863,175.89,175.73,25.65472863]
[1736793265677,6.48,175.88,175.73,25.65472863]
[1736793265884,2.8457,175.78,175.74,2.8462]
[1736793266075,22.40892863,175.83,175.73,3.2458]
[1736793266272,22.40892863,175.83,175.66,104.12]
[1736793266578,2.8465,175.73,175.69,2.8471]
[1736793267571,22.40892863,175.8,175.67,3.2798]
[1736793267970,6.48,175.81,175.67,3.2798]
[1736793267971,22.40892863,175.77,175.67,3.2798]
[1736793268672,22.40892863,175.8,175.68,2.8473]
[1736793268873,22.40892863,175.8,175.67,3.2798]
[1736793269279,2.8471,175.7,175.67,3.2798]
[1736793269473,22.40892863,175.8,175.67,3.2798]
[1736793269779,22.40892863,175.77,175.63,6.48]
[1736793270375,22.40892863,175.74,175.6,4.9869]
[1736793270575,22.40892863,175.74,175.6,11.4669]
[1736793270776,2.8476,175.67,175.62,2.8483]
[1736793270979,22.40892863,175.71,175.6,4.9869]
[1736793271176,22.40892863,175.71,175.6,3.2615]
[1736793271775,2.8473,175.68,175.63,2.848]
[1736793271980,6.48,175.74,175.6,3.2615]
[1736793271981,28.88892863,175.74,175.6,3.2615]
[1736793272380,22.40892863,175.71,175.6,3.2615]
[1736793272581,22.40892863,175.71,175.6,6.1101]
[1736793272782,22.40892863,175.71,175.6,3.2615]
[1736793273284,22.40892863,175.71,175.56,121.62292863]
[1736793273285,22.40892863,175.68,175.56,102.0631]
[1736793273982,2.8485,175.61,175.56,102.0631]
[1736793274183,22.40892863,175.68,175.57,2.849]
[1736793274483,22.40892863,175.68,175.56,99.214]
[1736793274683,22.40892863,175.71,175.56,121.62292863]
[1736793275379,22.40892863,175.68,175.56,99.214]
[1736793275585,22.40892863,175.71,175.56,121.62292863]
[1736793275984,2.8475,175.67,175.56,121.62292863]
[1736793276878,2.8475,175.67,175.59,22.40892863]
[1736793277082,2.847,175.7,175.6,1.7326]
[1736793277279,28.88892863,175.74,175.6,1.7326]
[1736793277682,2.8474,175.68,175.64,2.848]
[1736793277978,2.8474,175.68,175.6,1.7326]
[1736793278384,2.8469,175.71,175.6,1.7326]
[1736793278577,2.8469,175.71,175.62,22.40892863]
[1736793278779,22.40892863,175.77,175.63,8.0729]
[1736793279484,2.8465,175.73,175.64,2.8479]
[1736793279684,22.40892863,175.77,175.63,8.0729]
[1736793279878,22.40892863,175.77,175.64,1.5856]
[1736793280280,2.847,175.71,175.67,2.8475]
[1736793280480,2.847,175.71,175.64,1.5856]
[1736793281285,22.40892863,175.77,175.64,1.5856]
[1736793281483,97.64,175.83,175.64,1.5856]
[1736793281484,22.40892863,175.8,175.65,22.40892863]
[1736793282487,2.8464,175.74,175.7,2.8469]
[1736793282683,22.40892863,175.8,175.65,22.40892863]
[1736793283688,2.8463,175.75,175.7,2.8468]
[1736793283877,22.40892863,175.8,175.65,22.40892863]
[1736793284077,22.40892863,175.83,175.68,22.40892863]
[1736793284283,2.8458,175.78,175.69,1.6979]
[1736793284483,22.40892863,175.83,175.7,6.46]
[1736793284683,28.86892863,175.86,175.7,6.46]